Cogmind - Beta 16 @@@ ROGUE MODE // 2026.01.06 @ 21:44:43 Player: Rocket Result: Self-destructed Performance ------------- Evolutions (2) 1000 Regions Visited (6) 1200 Robots Destroyed (82) 410 Value Destroyed (3931) 3931 Prototype IDs (2) 40 Alien Tech Used (0) 0 Bonus (2409) 2409 TOTAL SCORE: 8990 Bonus ------- High Alert Combat Kills 301 Follower Combat Kills 208 Entered Garrisons 400 Used RIF Installer 1500 Cogmind --------- Core Integrity 14/550 Matter 242/300 Energy 265/265 System Corruption 9% Temperature Cool (0) Movement Treading (320) Ox2 Location -8/Garrison Parts ------- > --- POWER (1) -------- Reinforced Ion Engine > --- PROPULSION (2) --- Light Treads Light Treads > --- UTILITY (4) ------ Huge Storage Unit Hacking Suite Hacking Suite Relay Coupler [Grunt] (1) > --- WEAPON (4) ------- Particle Gun Particle Gun Heavy Assault Rifle Katana > --- INVENTORY (25) --- Light Nuclear Core Light Nuclear Core Light Nuclear Core Heat Sink Improved Heat Sink Improved Heat Sink High-capacity Matter Pod (200) Structural Scanner Trap Scanner ECM Suite Authchip [R/Combat] Authchip [R/Combat] Relay Coupler [NC] (27) Relay Coupler [Swarmer] (31) Relay Coupler [Cutter] (27) Relay Coupler [Grunt] (31) Relay Coupler [Duelist] (31) Relay Coupler [Sentry] (22) Relay Coupler [Demolisher] (24) Relay Coupler [Hunter] (13) Relay Coupler [Heavy] (10) Field Recycling Unit (0) Improved Datajack Peak State ------------ > --- POWER ------------ Reinforced Ion Engine > --- PROPULSION ------- Wheel Wheel > --- UTILITY ---------- Huge Storage Unit Hacking Suite Hacking Suite Relay Coupler [Grunt] > --- WEAPON ----------- Improved Medium Laser Heavy Assault Rifle Gauss Rifle Improved Datajack > --- INVENTORY -------- Light Nuclear Core Light Nuclear Core Light Nuclear Core Light Treads Heat Sink Improved Heat Sink Improved Heat Sink High-capacity Matter Pod Structural Scanner Trap Scanner ECM Suite Authchip [R/Combat] Authchip [R/Combat] Relay Coupler [NC] Relay Coupler [Swarmer] Relay Coupler [Cutter] Relay Coupler [Duelist] Relay Coupler [Sentry] Relay Coupler [Demolisher] Relay Coupler [Heavy] Field Recycling Unit Rocket Launcher Improved Datajack Katana [Rating: 32] Favorites ----------- Power Reinforced Ion Engine Engine Reinforced Ion Engine Power Core Light Nuclear Core Propulsion Wheel Treads Light Treads Leg Aluminum Leg Wheel Wheel Utility Hacking Suite Device Heat Sink Storage Huge Storage Unit Processor Improved Targeting Computer Hackware Hacking Suite Protection Medium Armor Plating Weapon Improved Medium Laser Energy Gun Improved Medium Laser Energy Cannon Advanced Beam Cannon Ballistic Gun Gauss Rifle Launcher Rocket Launcher Slashing Weapon Katana Special Melee Weapon Improved Datajack Build | -11 -10 -9 -8 -8 -8 -8 ------- Run | Yrd Mat Mat Mat Gar Mat Gar Slots Evolved 4 | . . 2 2 . . . Power . | . . . . . . . Propulsion . | . . . . . . . Utility 2 | . . . 2 . . . Weapon 2 | . . 2 . . . . Parts Attached 70 | 10 2 28 13 10 . 7 Power 5 | 1 . 2 2 . . . Engine 4 | 1 . 2 1 . . . Core 1 | . . . 1 . . . Reactor . | . . . . . . . Propulsion 17 | 4 . 5 1 3 . 4 Treads 7 | 2 . . . 3 . 2 Leg 2 | . . . . . . 2 Wheel 8 | 2 . 5 1 . . . Hover . | . . . . . . . Flight . | . . . . . . . Utility 19 | 2 2 3 7 4 . 1 Device 5 | 1 . 2 1 1 . . Storage 2 | 1 1 . . . . . Processor 3 | . 1 1 . 1 . . Hackware 4 | . . . 2 1 . 1 Protection 5 | . . . 4 1 . . Artifact . | . . . . . . . Weapon 29 | 3 . 18 3 3 . 2 Energy Gun 11 | 1 . 8 . . . 2 Energy Cannon 1 | . . 1 . . . . Ballistic Gun 11 | 2 . 4 3 2 . . Ballistic Cannon . | . . . . . . . Launcher 1 | . . 1 . . . . Special Weapon . | . . . . . . . Impact Weapon . | . . . . . . . Slashing Weapon 4 | . . 4 . . . . Piercing Weapon . | . . . . . . . Special Melee Weapon 1 | . . . . 1 . . Unidentified Prototypes 2 | . . 2 . . . . Corrupted Parts 2 | . . . . . . 2 System Corruption 7 | . . . . . . 7 Parts Lost 14 | . . . 8 . . 6 Power 1 | . . . 1 . . . Propulsion 4 | . . . 2 . . 2 Utility 1 | . . . 1 . . . Weapon 8 | . . . 4 . . 4 Highest Loss Streak 6 | . . . 6 . . 4 To Critical Strikes . | . . . . . . . Average Backups 21 | 1 5 19 23 23 25 22 Power 2 | . . 1 1 2 3 3 Propulsion 2 | . 1 2 2 3 1 . Utility 12 | . 2 7 11 13 18 17 Weapon 2 | . 2 4 6 2 2 1 Tool/Special . | . . . . . . . Unused Backups 37 | 2 . 4 2 9 . 20 Power 5 | 1 . . . 1 . 3 Propulsion 1 | 1 . . . . . . Utility 26 | . . 1 1 8 . 16 Weapon 2 | . . 1 1 . . . Tool/Special 3 | . . 2 . . . 1 Average Slot Usage (%) 96 | . 100 97 92 99 100 85 Engine 9 | . 14 11 4 9 9 9 Treads 4 | . . . . 5 . 7 Wheel 14 | . 28 22 15 12 18 6 Device 2 | . 5 5 7 . . . Storage 9 | . 14 11 9 9 9 9 Processor 4 | . 8 5 . 5 . . Hackware 16 | . . . 8 21 27 27 Energy Gun 11 | . . 24 15 9 9 6 Ballistic Gun 15 | . 28 7 18 18 18 10 Launcher 1 | . . . . 1 . 1 Slashing Weapon 1 | . . 9 . . . . Special Melee Weapon 4 | . . . . 7 9 5 Peak Build Rating 32 | 7 7 23 30 30 30 32 Average Rating 24 | 4 7 18 24 28 30 27 On Entrance 16 | . 7 7 18 22 30 30 Avg Prop Armor Cover (%) 14 | 27 . 5 . . . 11 Naked Turns . | . . . . . . . Heaviest Build 115 | 12 87 100 115 102 101 102 Greatest Support 40 | 40 20 22 20 40 20 40 Greatest Overweight (x) 30 | . 4 9 30 5 5 9 Average Overweight (x) 4 | . 3 4 5 4 5 4 Largest Inventory Capacity 25 | 8 25 25 25 25 25 25 Average Capacity 24 | 5 24 25 25 25 25 25 Most Carried 25 | 3 8 25 25 25 25 25 Average Carried 21 | 1 5 19 23 23 25 22 Final Capacity 25 | 8 25 25 25 25 25 25 Final Carried 25 | 2 8 24 20 25 25 23 Class Distribution -------------------- 34% | Scavenger-Gunner 20% | Commander-Gunner 13% | Bothacker-Gunner 12% | Mutant 8% | Bothacker-Mutant 7% | Gunner 3% | Scavenger-Tank Dominant Class ---------------- Mutant | -10/Materials Gunner | -9/Materials Scavenger-Gunner | -8/Materials Scavenger-Gunner | -8/Garrison Bothacker-Gunner | -8/Materials Bothacker-Mutant | -8/Garrison Resources | -11 -10 -9 -8 -8 -8 -8 ----------- Run | Yrd Mat Mat Mat Gar Mat Gar Matter Collected 2217 | 292 138 547 584 129 146 381 Remotely . | . . . . . . . Salvage Created 2951 | 84 258 1077 918 124 100 390 Parts 172 | 6 14 80 47 1 5 19 Haulers Intercepted 4 | . 1 2 1 . . . Recyclers Shooed 1 | . . . 1 . . . Parts Field Recycled . | . . . . . . . Retrieved Matter . | . . . . . . . Parts Self-Destructed . | . . . . . . . Prevented . | . . . . . . . Parts Restored . | . . . . . . . Kills | -11 -10 -9 -8 -8 -8 -8 ------- Run | Yrd Mat Mat Mat Gar Mat Gar Combat Hostiles Destroyed 58 | . 4 23 16 1 2 12 Melee 9 | . . 6 . . . 3 Guns 37 | . 4 11 16 1 2 3 AOE 12 | . . 6 . . . 6 Classes Destroyed 15 | 2 4 6 2 1 . . Worker 2 | . . 1 1 . . . Builder 3 | . . 3 . . . . Tunneler 4 | 1 . 2 1 . . . Hauler 4 | . 1 2 1 . . . Recycler 4 | 1 . 2 1 . . . Mechanic 1 | . 1 . . . . . Operator 2 | . . 2 . . . . Watcher 4 | . 1 2 1 . . . Swarmer 15 | . . 12 3 . . . Grunt 25 | . 4 4 7 . 2 8 Brawler 2 | . . . 1 . . 1 Duelist 2 | . . 1 1 . . . Sentry 9 | . . 6 3 . . . Hunter 1 | . . . 1 . . . Programmer 4 | . . . . 1 . 3 Best Kill Streak 9 | 1 6 9 5 1 1 4 Combat Bots Only 6 | . 4 6 4 1 1 4 Max Kills in Single Turn 3 | 1 1 3 2 1 1 1 Gunslinging 1 | . . . 1 . . . Exploded 3 | . . 3 . . . 1 Melee 1 | . . 1 . . . 1 Uniques/NPCs Destroyed . | . . . . . . . Combat | -11 -10 -9 -8 -8 -8 -8 -------- Run | Yrd Mat Mat Mat Gar Mat Gar Hostile Shots Fired 268 | . 21 82 84 . 4 77 Missed 56 | . 2 19 22 . . 13 Hits 212 | . 19 63 62 . 4 64 Melee 4 | . . . 4 . . . Projectile 208 | . 19 63 58 . 4 64 Critical Strikes 9 | . . 2 2 . . 5 Damage Taken 2967 | . 287 600 969 . 66 1045 Core 823 | . 121 166 154 . 14 368 Absorbed by Shields . | . . . . . . . Regen/Repaired (Parts) 76 | . . . 18 10 . 48 Core Remaining (%) 69 | 100 51 58 . . . . Volleys Fired 193 | 16 23 39 49 25 6 35 Largest 4 | 2 2 4 4 3 3 3 Hottest 224 | 60 40 224 163 107 107 117 Shots Fired 500 | 32 46 139 173 35 18 57 Gun 482 | 32 46 136 173 35 18 42 Cannon . | . . . . . . . Launcher 18 | . . 3 . . . 15 Special . | . . . . . . . Kinetic 271 | 24 46 19 107 30 12 33 Thermal 203 | . . 117 66 5 6 9 Explosive 18 | . . 3 . . . 15 Electromagnetic 8 | 8 . . . . . . Robot Hit Streak 17 | 6 7 11 17 12 6 11 Robot Miss Streak 12 | 2 1 12 5 2 2 2 Penetration Max 1 | . . . 1 . . . Secondary Targets 10 | . 2 4 4 . . . Max Gunslinging Chain 1 | . 1 1 1 . . . Shots Hit Robots 325 | 15 33 80 104 42 13 38 Core Hits 135 | 4 18 42 36 8 5 22 Critical Kills . | . . . . . . . Critical Parts Destroyed 1 | . 1 . . . . . Critical Strikes 14 | . 1 9 3 . . 1 Burn 12 | . . 9 3 . . . Destroy 1 | . 1 . . . . . Sever 1 | . . . . . . 1 Melee Attacks 63 | . . 18 . 29 1 15 Impact . | . . . . . . . Slashing 28 | . . 18 . . . 10 Piercing . | . . . . . . . Sneak Attacks 22 | . . 2 . 19 1 . Combat Hostiles . | . . . . . . . Follow-up Attacks 4 | . . 4 . . . . Damage Inflicted 6140 | 202 365 1881 1827 284 199 1382 Guns 4342 | 155 365 1071 1827 284 199 441 Cannons . | . . . . . . . Explosions 1228 | 47 . 404 . . . 777 Melee 570 | . . 406 . . . 164 Ramming . | . . . . . . . Kinetic 2492 | 88 365 102 1227 224 134 352 Thermal 1830 | 47 . 969 600 60 65 89 Explosive 1181 | . . 404 . . . 777 Electromagnetic 67 | 67 . . . . . . Impact . | . . . . . . . Slashing 570 | . . 406 . . . 164 Piercing . | . . . . . . . Highest Corruption 9 | . . 3 . . . 9 Average Corruption 3 | . . 2 . . . 4 Corruption Purged . | . . . . . . . Corruption Blocked . | . . . . . . . Effects 23 | . . 8 . . . 15 Message Errors 2 | . . 1 . . . 1 Matter Fused 5 | . . 2 . . . 3 Heat Flow Errors 5 | . . 1 . . . 4 Energy Discharges 5 | . . 1 . . . 4 Data Loss (minor) 3 | . . 1 . . . 2 Data Loss (major) 2 | . . 1 . . . 1 Misfires 1 | . . 1 . . . . Overload Shots . | . . . . . . . Overflow Damage 70 | 17 . 16 . . . 37 Projectiles . | . . . . . . . Explosions 54 | 17 . . . . . 37 Melee 16 | . . 16 . . . . Knockbacks . | . . . . . . . Impact . | . . . . . . . Kinetic . | . . . . . . . Secondary . | . . . . . . . Self-Inflicted Damage 34 | . . . . . . 34 Shots 2 | . . . . . . 2 Rammed . | . . . . . . . Targets Rammed . | . . . . . . . Kicked . | . . . . . . . Crushed . | . . . . . . . Highest Temperature 477 | 60 30 477 304 78 144 227 Average Temperature 103 | 30 12 138 104 33 54 87 Received Heat Transfer 1173 | . 132 114 405 . 36 486 Effects 3 | . . . 3 . . . Interference 3 | . . . 3 . . . Siege Activations . | . . . . . . . Martial Activations . | . . . . . . . Shielding Activations . | . . . . . . . Robots Disrupted . | . . . . . . . Combat Hostiles . | . . . . . . . Robots Corrupted . | . . . . . . . Combat Hostiles . | . . . . . . . Parts Fried 1 | 1 . . . . . . Impact Corruptions . | . . . . . . . Robots Melted 1 | . . 1 . . . . Combat Hostiles . | . . . . . . . Parts Melted 8 | . . 7 1 . . . Heat Transferred 5024 | 50 . 2902 1628 111 148 185 Parts Sabotaged . | . . . . . . . Parts Stolen . | . . . . . . . Parts Stripped . | . . . . . . . Power Chain Reactions 1 | 1 . . . . . . Alert | -11 -10 -9 -8 -8 -8 -8 ------- Run | Yrd Mat Mat Mat Gar Mat Gar Maximum Alert Level 5 | . . 2 1 5 4 3 Low Security (%) 18 | 100 100 54 12 . . . Level 1 23 | . . 42 87 17 . . Level 2 14 | . . 3 . 18 . 33 Level 3 19 | . . . . 17 38 66 Level 4 10 | . . . . 17 61 . Level 5 14 | . . . . 27 . . High Security . | . . . . . . . Max Security . | . . . . . . . Peak Influence 2441 | 5 90 407 314 2441 1213 817 Initial 1189 | . . . 166 196 1189 551 Average 724 | . 27 145 256 1107 1042 685 Influence Increases 4201 | 10 140 718 463 2265 159 446 Destroy 0b10 Robot/C 1220 | . 80 460 320 20 80 260 Destroy 0b10 Robot/NC 130 | 10 15 70 25 5 5 . Destroy Leader 268 | . 24 118 84 . 22 20 Allied During Kill 81 | . . . . 3 52 26 Successful Hack 56 | . 21 2 1 32 . . Disable Machine 30 | . . 30 . . . . Anti-Garrison Action 2300 | . . . . 2200 . 100 Destroy Structure 71 | . . 23 3 5 . 40 Lose Combat Pursuer 45 | . . 15 30 . . . Influence Decreases 3384 | 10 140 323 555 127 1752 477 Entered New Map 1885 | . . . 229 107 1252 297 Time Decay 769 | 10 140 323 246 . 50 . Lost Part 140 | . . . 80 . . 60 Lost Ally 140 | . . . . 20 . 120 Purge Threat 450 | . . . . . 450 . Squads Dispatched 6 | . 2 1 2 . 1 . Investigation 3 | . 2 . . . 1 . Extermination . | . . . . . . . Reinforcement 1 | . . 1 . . . . Assault . | . . . . . . . Garrison 2 | . . . 2 . . . Intercept . | . . . . . . . Searches Triggered . | . . . . . . . Construction Impeded . | . . . . . . . Haulers Reinforced . | . . . . . . . Active Scanning Responses . | . . . . . . . Cargo Convoy Interrupts . | . . . . . . . Alert ID Control Effect 3 | . . . . . . 3 Stealth | -11 -10 -9 -8 -8 -8 -8 --------- Run | Yrd Mat Mat Mat Gar Mat Gar Distress Signals 4 | . 2 1 . . 1 . Communications Jammed . | . . . . . . . Distress Signals . | . . . . . . . Times Spotted 86 | . 9 31 22 1 5 18 Peak Tracking Total 6 | . 3 6 5 1 2 3 Tactical Retreats 2 | . . 1 1 . . . Traps | -11 -10 -9 -8 -8 -8 -8 ------- Run | Yrd Mat Mat Mat Gar Mat Gar Traps Triggered 10 | . 2 2 . 1 . 5 Indirectly . | . . . . . . . Trap Hack Attempts . | . . . . . . . Triggered . | . . . . . . . Disarmed . | . . . . . . . Reprogrammed . | . . . . . . . Reused . | . . . . . . . Traps Extracted . | . . . . . . . Installed . | . . . . . . . Triggered . | . . . . . . . Machines | -11 -10 -9 -8 -8 -8 -8 ---------- Run | Yrd Mat Mat Mat Gar Mat Gar Machines Disabled 10 | . . 2 . 6 . 2 Max in Single Turn 1 | . . 1 . 1 . 1 Garrison Relay 8 | . . . . 6 . 2 Machines Repaired . | . . . . . . . Machines Dismantled . | . . . . . . . Machines Sabotaged . | . . . . . . . Overloaded Fab Kills . | . . . . . . . Hacking | -11 -10 -9 -8 -8 -8 -8 --------- Run | Yrd Mat Mat Mat Gar Mat Gar Machines Accessed 16 | . 4 4 2 4 2 . Terminals 10 | . 3 2 . 4 1 . Fabricators . | . . . . . . . Repair Stations 3 | . 1 1 1 . . . Recycling Units . | . . . . . . . Scanalyzers 1 | . . 1 . . . . Garrison Access 2 | . . . 1 . 1 . Total Hacks 38 | . 10 9 3 6 10 . Successful 19 | . 4 2 3 3 7 . Failed 18 | . 6 6 . 3 3 . Catastrophic 2 | . 1 1 . . . . Database Lockouts 1 | . . 1 . . . . Manual 9 | . 7 2 . . . . Terminals 24 | . 7 3 . 6 8 . Fabricators . | . . . . . . . Repair Stations 7 | . 3 2 2 . . . Recycling Units . | . . . . . . . Scanalyzers 4 | . . 4 . . . . Garrison Access 3 | . . . 1 . 2 . Terminal Hacks 11 | . 3 . . 3 5 . Part Schematic 1 | . 1 . . . . . Robot Schematic 2 | . 2 . . . . . Alert Level 2 | . . . . . 2 . Unreport Threat 3 | . . . . . 3 . Garrison Registry 1 | . . . . 1 . . Patrol Navigation 1 | . . . . 1 . . Security Stations 1 | . . . . 1 . . Fabricator Hacks . | . . . . . . . Repair Station Hacks 3 | . 1 . 2 . . . Scan Component 2 | . 1 . 1 . . . Repair 1 | . . . 1 . . . Recycling Unit Hacks . | . . . . . . . Scanalyzer 2 | . . 2 . . . . Retrieve Study 2 | . . 2 . . . . Garrison Access Hacks 3 | . . . 1 . 2 . Unlock Access 2 | . . . 1 . 1 . Coupler Status 1 | . . . . . 1 . Unauthorized Hacks . | . . . . . . . Terminals . | . . . . . . . Fabricators . | . . . . . . . Repair Stations . | . . . . . . . Recycling Units . | . . . . . . . Scanalyzers . | . . . . . . . Garrison Access . | . . . . . . . Data Cores Recovered . | . . . . . . . Used . | . . . . . . . Hacking Detections 10 | . 3 2 . 3 2 . Full Trace Events 4 | . 2 1 . . 1 . Feedback Events . | . . . . . . . Feedback Blocked . | . . . . . . . Robot Schematics Acquired 2 | . 2 . . . . . Robots Built . | . . . . . . . Authchips . | . . . . . . . Time . | . . . . . . . Total Robot Build Rating . | . . . . . . . Part Schematics Acquired 1 | . 1 . . . . . Parts Built . | . . . . . . . Authchips . | . . . . . . . Time . | . . . . . . . Total Part Build Rating . | . . . . . . . Part Studies Acquired 2 | . . 2 . . . . Parts Repaired 1 | . . . 1 . . . Time 32 | . . . 32 . . . Parts Recycled . | . . . . . . . Recycled Matter . | . . . . . . . Retrieved Matter . | . . . . . . . Retrieved Components . | . . . . . . . Parts Scanalyzed . | . . . . . . . Part Schematics Acquired . | . . . . . . . Parts Damaged . | . . . . . . . Bothacking | -11 -10 -9 -8 -8 -8 -8 ------------ Run | Yrd Mat Mat Mat Gar Mat Gar Used RIF Installer 3 | . . . . 2 . 1 Command Fork 1 | . . . . 1 . . Alert ID Control 1 | . . . . . . 1 Robots Hacked 6 | . . . . 2 1 3 Non-combat 2 | . . . . 1 1 . Combat 4 | . . . . 1 . 3 Robot Hacks Applied 9 | . . . . 5 1 3 parse_system 3 | . . . . 3 . . link_fov 1 | . . . . 1 . . disable_weapons 1 | . . . . . . 1 overwrite_iff 1 | . . . . . . 1 formatsys_low 2 | . . . . 1 1 . formatsys_high 1 | . . . . . . 1 Relay Couplers Released 36 | . . . . 27 . 9 Machine Destruction 33 | . . . . 24 . 9 Programmers 3 | . . . . 3 . . Attached 2 | . . . . 1 . 1 Fabnet Peak Effective % . | . . . . . . . Robots Rewired 9 | . . . . 9 . . Allies Hacked 1 | . . . . . . 1 Hacks Repelled . | . . . . . . . Allies | -11 -10 -9 -8 -8 -8 -8 -------- Run | Yrd Mat Mat Mat Gar Mat Gar Total Allies 16 | . . . . 11 1 4 Largest Group 10 | . . . . 10 9 8 Highest-Rated Group 196 | . . . . 196 151 135 Highest-Rated Ally 34 | . . . . 34 23 29 Total Orders 13 | . . . . 6 1 6 STAY 1 | . . . . . . 1 FOLLOW 4 | . . . . 1 . 3 AID 7 | . . . . 5 1 1 COLLECT 1 | . . . . . . 1 Ally Attacks 55 | . . . . 6 7 42 Total Damage 871 | . . . . 147 119 605 Kills 8 | . . . . . 3 5 Allies Corrupted 1 | . . . . . . 1 Allies Melted . | . . . . . . . Intel | -11 -10 -9 -8 -8 -8 -8 ------- Run | Yrd Mat Mat Mat Gar Mat Gar Active Infowar (turns) 451 | 16 393 11 . 31 . . Traps 31 | . . . . 31 . . Seismic 163 | 16 147 . . . . . T.N.C. 257 | . 246 11 . . . . Robot Analysis Total . | . . . . . . . Derelict Logs Recovered . | . . . . . . . Drone Launches . | . . . . . . . Drone Recoveries . | . . . . . . . Exploration | -11 -10 -9 -8 -8 -8 -8 ------------- Run | Yrd Mat Mat Mat Gar Mat Gar Turns Passed 6621 | 137 393 1150 521 3356 110 954 Spaces Moved 3233 | 86 215 641 190 1754 57 290 Core 6 | 5 . . 1 . . . Treads 442 | 7 . . . 327 . 108 Legs 15 | . . . . . . 15 Wheels 2770 | 74 215 641 189 1427 57 167 Hover . | . . . . . . . Flight . | . . . . . . . Fastest Speed 50 | 50 80 130 130 130 145 145 Average Speed 170 | 84 135 139 151 177 145 264 Slowest Speed 1550 | 160 140 215 1550 320 145 750 Overloaded Moves . | . . . . . . . Propulsion Burnouts . | . . . . . . . Robots Hopped . | . . . . . . . Potential Cave-ins 3 | . . . . . . 3 Cave-ins Triggered . | . . . . . . . Exploration Rate (%) 37 | 4 51 55 21 94 8 28 Regions Visited 6 Branch Regions . Pre-discovered Areas . | . . . . . . . Known Exits Taken 2 | . . . 1 . 1 . Unknown Exits Taken 3 | 1 1 1 . . . . Scrap Searched . | . . . . . . . Spaces Dug . | . . . . . . . Terrain Destroyed 102 | . . 20 1 1 . 80 Melee . | . . . . . . . Projectile 3 | . . . 1 1 . 1 AOE 99 | . . 20 . . . 79 Terrain Rammed . | . . . . . . . Walls Destroyed . | . . . . . . . Machines Disabled . | . . . . . . . Actions | -11 -10 -9 -8 -8 -8 -8 --------- Run | Yrd Mat Mat Mat Gar Mat Gar Total 3951 | 117 274 789 319 1974 71 407 Wait 261 | . 30 27 51 103 7 43 Move 3226 | 85 214 640 189 1752 56 290 Hop . | . . . . . . . Pick Up 66 | 4 5 22 6 26 . 3 Fast Attach 18 | 7 . 6 1 . . 4 Attach 15 | . . 1 8 3 . 3 Detach 2 | . . 2 . . . . Swap 54 | 3 2 22 8 15 . 4 Drop 50 | 2 . 18 7 21 . 2 Fire 193 | 16 23 39 49 25 6 35 Melee 57 | . . 12 . 29 1 15 Ram . | . . . . . . . Kick . | . . . . . . . Crush . | . . . . . . . Escape Stasis 8 | . . . . . . 8 Rewire 1 | . . . . . 1 . Trap . | . . . . . . . Miscellaneous . | . . . . . . . Route ------- -11/Scrapyard -10/Materials (discovered 2 exits: *Mat / [*Min]) -9/Materials (discovered 2 exits: *Mat / [*Min]) -8/Materials -8/Garrison (discovered 3 exits: *Mat x3) -8/Materials -8/Garrison History --------- Turn | Location | Event 36 | -11/Scrapyard | Discovered new exit (range 15) 138 | -11/Scrapyard | Entered Materials 306 | -10/Materials | Build established: Mutant 348 | -10/Materials | Discovered new exit (range 12) 477 | -10/Materials | Discovered new exit (range 5) 531 | -10/Materials | Entered another Materials area 531 | -9/Materials | Evolved 2 slots: Weapon x2 1172 | -9/Materials | Discovered new exit (range 16) 1326 | -9/Materials | Central database locked down 1593 | -9/Materials | Build established: Scavenger-Gunner 1613 | -9/Materials | Discovered new exit (range 15) 1681 | -9/Materials | Entered another Materials area 1681 | -8/Materials | Evolved 2 slots: Utility x2 1987 | -8/Materials | Repaired Rocket Launcher 2038 | -8/Materials | Garrison activated, responded to threat 2145 | -8/Materials | Lost 6 parts (1p1n1u3w) 2196 | -8/Materials | Identified exit to Garrison 2202 | -8/Materials | Entered Garrison 2202 | -8/Garrison | Discovered recently destroyed garrison 2336 | -8/Garrison | Discovered new exit (range 43) 2336 | -8/Garrison | Discovered new exit (range 64) 2336 | -8/Garrison | Discovered new exit (range 68) 2736 | -8/Garrison | Installed Relay Interface Framework 3359 | -8/Garrison | Expanded RIF knowledge: Command Fork 3978 | -8/Garrison | Learned Materials security intel 4001 | -8/Garrison | Garrison Relay disabled 4104 | -8/Garrison | Build established: Commander-Gunner 4196 | -8/Garrison | Garrison Relay disabled 4463 | -8/Garrison | Garrison Relay disabled 4743 | -8/Garrison | Garrison Relay disabled 5176 | -8/Garrison | Garrison Relay disabled 5420 | -8/Garrison | Garrison Relay disabled 5484 | -8/Garrison | Build established: Bothacker-Gunner 5558 | -8/Garrison | Entered Materials 5558 | -8/Materials | Accompanied by 8 allies 5667 | -8/Materials | Identified exit to Garrison 5668 | -8/Materials | Entered Garrison 5668 | -8/Garrison | Accompanied by 8 allies 5691 | -8/Garrison | Expanded RIF knowledge: Alert ID Control 5739 | -8/Garrison | Lost 3 allies 5753 | -8/Garrison | Garrison Relay disabled 5935 | -8/Garrison | Triggered checkpoint 5992 | -8/Garrison | P-60 Hacker assimilated allied Trooper 3c 5996 | -8/Garrison | Core integrity fell below 50% 6025 | -8/Garrison | Lost 4 allies 6042 | -8/Garrison | Lost 4 parts (2n2w) 6290 | -8/Garrison | Build established: Bothacker-Mutant 6522 | -8/Garrison | Triggered checkpoint 6534 | -8/Garrison | Core integrity fell below 20% 6615 | -8/Garrison | Garrison Relay disabled 6622 | -8/Garrison | Self-destructed Last Messages --------------- 06591_ A bubble of rippling energy engulfs the area. 06591_ Field strength at 70. 06594_ Field strength at 40. 06595_ Field strength at 10. 06596_ Stasis field depleted. 06608_ System corrupted: Energy discharge (-58). 06615_ Garrison Relay disabled. 06615_ Relay Coupler [Specialist] tumbles out of relay unit. 06615_ Relay Coupler [Grunt] tumbles out of relay unit. 06615_ Relay Coupler [Hunter] tumbles out of relay unit. 06615_ Relay Coupler [Specialist] tumbles out of relay unit. 06615_ Relay Coupler [Grunt] tumbles out of relay unit. 06617_ Acquired Relay Coupler [Grunt]. 06621_ Acquired Relay Coupler [Hunter]. Map ----- +----------------------------------------------------+ | ?????????????????????????????????????????????? | | ?????????????????????????????????????????????? | | ?????????????????????????????????????????????? | | ?????????????????????????????????????????????? | | ?????????????????????????????????????????????? | | ?????????????????????????????????????????????? | | ?????????????????????????????????????????????? | | ?????????????????????????????????????????????? | | ?????????????????????????????????????????????? | | ?????????????????????????????????????????????? | | ?????????????????????????????????????????????? | | ?????????????????????????????????????????????? | | ?????????????????????????????????????????????? | | ?????????????????????????????????????????????? | | ?????????????????????????????????????????????? | | ?????????????????????????????????????????????? | | ?????????????????????????????????????????????? | | ?????????????????????????????????????????????? | | ?????????????????????????????????????????????? | | ?????????????????????????????????????????????? | | ?????????????????????????????????????????????? | | ?????????????? ????????????????????????????? | | ?????????????# ????????????????????????????? | | ?????????????# ?????#########??????????????? | | ?????????????# ?????# !! "#??????????????? | | ?????????????# #????# @ ! "#??????????????? | | ?????????????# #????# "" """#??????????????? | | ?????????????# #????# #######??????????????? | | ?????????????# #????# #????????????????????? | | ?????????????# #??### #??##????????????????? | | ?????????????# #??# ## ##??????????????? | | ?????????????# #??# == #??????????????? | | ?????????????# #??#!= ## #??????????????? | | ?????????????# #??###*#?? #????????????????? | | ????????###### ######!#???#????????????????? | | ????????# %*!=#????????????????????? | | ????????# #### ########????????????????????? | | ????????# #??# #???????????????????????????? | | ????????# #??# #???????????????????????????? | | ????????# #??# #???????????????????????????? | | ????????# #??# #???????????????????????????? | | ######### #### #???????????????????????????? | | #???????????????????????????? | | #???????????????????????????? | | #???????????????????????????? | | ###############???????????????????????????? | | ###???????????????????????????????????????? | | ! #???????????????????????????????????????? | | * #???????????????????????????????????????? | | #???????????????????????????????????????? | +----------------------------------------------------+ Best States ------------- Heat Dissipation 45 Energy Generation 14 Energy Capacity 265 Matter Stores 300 Matter Capacity 300 Sight Range 16 Terrain Scan Density 10 Armor Coverage 450 Evasion (%) 44 Targeting Accuracy 6 Recoil Reduction 2 Offensive Hacking 20 Relay Coupler Types 1 Relay Coupler Value 31 Authchip Count 2 Item Schematics ----------------- Cargo Storage Unit | -10/Materials | Hacked Robot Schematics ------------------ G-34 Mercenary | -10/Materials | Hacked M-13 Machinist | -10/Materials | Hacked Fabricated ------------ Nothing Repaired ---------- Rocket Launcher | 74% | -8/Materials Studied --------- Wheel | -9/Materials | Hacked Lgt. Ion Engine | -9/Materials | Hacked Alien Tech Used ----------------- None Achievements -------------- Assimilation Complete Mindtrick You Will Be Upgraded Challenges ------------ None Game ------ Seed CoolantSystemDeconstructor Manual? 0 Play Time 00:54:33 Cumulative 53.2 hours Start 2026.01.06 @ 01:52:59 End 2026.01.06 @ 21:44:43 Sessions 2 Manual Loads 0 Difficulty Rogue Special Mode None Game No. 73 Rogue 73 Adventurer 0 Explorer 0 Win Type - Total 0 Types 0/0/0/0/0/0/0/0/0/0 Lore% 8 Gallery% 29 Achievement% 20 Wizard Run 0 Options --------- Layout 1 ASCII 0 Keyboard 0 Movement Mouse Keybinds 0 Fullscreen 2 Font 24/Smallcaps Map View 50x35 Zoom Use 12% Tactical HUD 1 Map Filters NONE Filters NONE Steam 1 RUN: f27bda9b-5586-4d76-8dd9-0ed23656775a